fUST/lending_fUST_20250920
["ID","MTS","AMOUNT","RATE_DAILY","PERIOD"]
[386534244,1758363402181,-14.3304995,0.00021024,2]
[386534245,1758363402385,-27.00355292,0.00021024,2]
[386534246,1758363411856,-445.87,0.00021024,2]
[386534247,1758363411884,-481.26529006,0.00021024,2]
[386534248,1758363411914,-666.14,0.00021024,2]
[386534249,1758363411942,-480.0,0.00021024,2]
[386534250,1758363411971,-480.0,0.00021024,2]
[386534251,1758363411999,-480.0,0.00021024,2]
[386534252,1758363412026,-480.0,0.00021024,2]
[386534253,1758363412054,-480.0,0.00021024,2]
[386534254,1758363412079,-480.0,0.00021024,2]
[386534255,1758363412106,-458.14592368,0.00021024,2]
[386534256,1758363412361,-137.16757252,0.00021024,2]
[386534257,1758363429471,202.76698425,0.000199,2]
[386534258,1758363431978,-300.0,0.00021023,2]
[386534259,1758363432011,-357.88596919,0.00021024,2]
[386534260,1758363432039,-482.58581578,0.00021024,2]
[386534261,1758363432069,-480.0,0.00021024,2]
[386534262,1758363432097,-480.0,0.00021024,2]
[386534263,1758363432126,-480.0,0.00021024,2]
[386534264,1758363432154,-481.57317807,0.00021024,2]
[386534265,1758363432289,-482.23889855,0.00021024,2]
[386534266,1758363432322,-480.0,0.00021024,2]
[386534267,1758363432350,-481.5012403,0.00021024,2]
[386534268,1758363432381,-480.0,0.00021024,2]
[386534269,1758363461968,-480.0,0.00021024,2]
[386534270,1758363461996,-480.0,0.00021024,2]
[386534271,1758363462025,-349.99579611,0.00021024,2]
[386534272,1758363462053,-480.0,0.00021024,2]
[386534273,1758363462080,-480.0,0.00021024,2]
[386534274,1758363462107,-1200.0,0.00021024,2]
[386534275,1758363462137,-480.0,0.00021024,2]
[386534276,1758363462164,-480.0,0.00021024,2]
[386534277,1758363462191,-391.6,0.00021024,2]
[386534278,1758363462351,-182.49121975,0.00021024,2]
[386534280,1758363471983,-10000.01,0.00021006,2]
[386534281,1758363477359,150.0,0.00019352,2]
[386534282,1758363477785,284.52,0.00020273,2]
[386534283,1758363482109,-669.21,0.00020996,3]
[386534284,1758363482142,-8661.59,0.00021006,2]
[386534285,1758363482240,-10000.01,0.00021006,2]
[386534286,1758363492044,-10000.01,0.00021006,2]
[386534287,1758363558509,207.99,0.00019351,2]
[386534288,1758363558964,415.97,0.00020273,2]
[386534290,1758363608017,210.78506502,0.000199,2]
[386534291,1758363639815,200.04,0.0001935,2]
[386534292,1758363640320,400.09,0.00020271,2]
[386534293,1758363663260,163.84980612,0.00020395,5]
[386534294,1758363724071,192.41,0.00019399,2]
[386534295,1758363724577,384.81,0.00020323,2]
[386534296,1758363726415,7824.06512886,0.0002,2]
[386534297,1758363726436,175.93487114,0.0002,2]
[386534298,1758363787524,210.78506493,0.000199,2]
[386534300,1758363806207,185.06,0.00019403,2]
[386534301,1758363806733,370.12,0.00020327,2]
[386534302,1758363842855,497.95021124,0.000199,2]
[386534303,1758363894215,-1000.0,0.00021653,14]
[386534304,1758363896674,177.99,0.00019414,2]
[386534305,1758363896896,355.99,0.00020338,2]
[386534309,1758363929275,168.0,0.00020517,2]
[386534310,1758363965766,210.78506493,0.000199,2]
[386534311,1758363974291,1000.0,0.00024,30]
[386534312,1758363979159,171.2,0.00019413,2]
[386534313,1758363979377,342.39,0.00020337,2]
[386534316,1758364012897,-300.0,0.00020905,2]
[386534317,1758364012926,-184.0,0.00020905,2]
[386534318,1758364012956,-1200.0,0.00020905,2]
[386534319,1758364012986,-300.0,0.00020905,2]
[386534320,1758364013014,-214.97335464,0.00020906,2]
[386534321,1758364013282,-2926.24944642,0.00020906,2]
[386534322,1758364013538,-4147.51110716,0.00020906,2]
[386534323,1758364013566,-160.0,0.00020915,2]
[386534324,1758364013594,-160.0,0.00020917,2]
[386534325,1758364013622,-417.15472785,0.00020919,2]
[386534326,1758364013661,-1200.0,0.00020923,2]
[386534327,1758364013689,-1000.0,0.00020986,7]
[386534328,1758364013724,-860.83,0.00020986,3]
[386534329,1758364013754,-430.42,0.00020986,3]
[386534330,1758364013787,-215.21,0.00020986,3]
[386534331,1758364014140,-9727.92258064,0.00020986,2]
[386534332,1758364022944,-300.0,0.00020985,2]
[386534333,1758364022979,-9400.01,0.00020986,2]
[386534334,1758364023043,-10000.01,0.00020986,2]
[386534335,1758364023170,-10000.01,0.00020986,2]
[386534336,1758364023297,-10000.01,0.00020986,2]
[386534337,1758364034114,-312.50085972,0.00020986,2]
[386534338,1758364059544,164.66,0.00019416,2]
[386534339,1758364059986,329.32,0.00020341,2]
[386534340,1758364117703,9506.03,0.00015,2]
[386534341,1758364117727,10000.01,0.00015,2]
[386534342,1758364117754,10000.01,0.00015,2]
[386534343,1758364117777,10000.01,0.00015,2]
[386534344,1758364117799,10000.01,0.00015,2]
[386534345,1758364117822,340.3017226,0.00015,2]
[386534346,1758364119534,1000.0,0.0001,2]
[386534348,1758364120272,1353.18663626,0.00018,2]
[386534357,1758364127244,-1190.76648198,0.00020891,2]
[386534358,1758364127279,-2902.63666698,0.00020906,2]
[386534359,1758364127391,-1813.20370208,0.00020906,2]
[386534360,1758364127427,-559.53655964,0.00020986,2]
[386534361,1758364127465,-300.0,0.00020989,2]
[386534362,1758364127635,-367.49803212,0.00020989,2]
[386534363,1758364127662,-213.88370308,0.00020989,2]
[386534364,1758364127693,-500.0,0.00020989,2]
[386534365,1758364127722,-500.0,0.00020989,2]
[386534366,1758364127755,-500.0,0.00020989,2]
[386534367,1758364127889,-500.0,0.00020989,2]
[386534368,1758364127918,-500.0,0.00020989,2]
[386534369,1758364127947,-379.85948557,0.00020989,2]
[386534370,1758364127976,-500.0,0.00020989,2]
[386534371,1758364128004,-457.95266459,0.00020989,2]
[386534372,1758364128035,-500.0,0.00020989,2]
[386534373,1758364128065,-316.73864272,0.00020989,2]
[386534374,1758364128095,-500.0,0.00020989,2]
[386534375,1758364128124,-457.08695111,0.00020989,2]
[386534376,1758364128155,-500.0,0.00020989,2]
[386534377,1758364128185,-276.73451202,0.00020989,2]
[386534378,1758364128226,-223.26548798,0.00020989,2]
[386534379,1758364128258,-500.0,0.00020989,2]
[386534380,1758364128288,-500.0,0.00020989,2]
[386534381,1758364128318,-500.0,0.00020989,2]
[386534382,1758364128346,-395.38004626,0.00020989,2]
[386534383,1758364128374,-500.0,0.00020989,2]
[386534384,1758364128401,-500.0,0.00020989,2]
[386534385,1758364128431,-500.0,0.00020989,2]
[386534386,1758364128459,-222.8347635,0.00020989,2]
[386534387,1758364128490,-500.0,0.00020989,2]
[386534388,1758364128518,-500.0,0.00020989,2]
[386534389,1758364128663,-500.0,0.00020989,2]
[386534390,1758364128694,-500.0,0.00020989,2]
[386534391,1758364128722,-500.0,0.00020989,2]
[386534392,1758364128766,-500.0,0.00020989,2]
[386534393,1758364128799,-500.0,0.00020989,2]
[386534394,1758364128832,-500.0,0.00020989,2]
[386534395,1758364128864,-500.0,0.00020989,2]
[386534396,1758364128895,-500.0,0.00020989,2]
[386534397,1758364128929,-500.0,0.00020989,2]
[386534398,1758364128959,-500.0,0.00020989,2]
[386534399,1758364129056,-500.0,0.00020989,2]
[386534400,1758364129087,-500.0,0.00020989,2]
[386534401,1758364129119,-500.0,0.00020989,2]
[386534402,1758364129150,-500.0,0.00020989,2]
[386534403,1758364129180,-500.0,0.00020989,2]
[386534404,1758364129213,-500.0,0.00020989,2]
[386534405,1758364129243,-500.0,0.00020989,2]
[386534406,1758364129277,-500.0,0.00020989,2]
[386534407,1758364129309,-500.0,0.00020989,2]
[386534408,1758364129341,-500.0,0.00020989,2]
[386534409,1758364129614,-500.0,0.00020989,2]
[386534410,1758364129643,-500.0,0.00020989,2]
[386534411,1758364129677,-500.0,0.00020989,2]
[386534412,1758364129708,-500.0,0.00020989,2]
[386534413,1758364129740,-500.0,0.00020989,2]
[386534414,1758364129775,-500.0,0.00020989,2]
[386534415,1758364129809,-500.0,0.00020989,2]
[386534416,1758364129839,-500.0,0.00020989,2]
[386534417,1758364129870,-500.0,0.00020989,2]
[386534418,1758364129903,-500.0,0.00020989,2]
[386534419,1758364133168,-500.0,0.00020989,2]
[386534420,1758364133203,-500.0,0.00020989,2]
[386534421,1758364133232,-500.0,0.00020989,2]
[386534422,1758364133263,-500.0,0.00020989,2]
[386534423,1758364133295,-500.0,0.00020989,2]
[386534424,1758364133326,-500.0,0.00020989,2]
[386534425,1758364133355,-500.0,0.00020989,2]
[386534426,1758364133386,-500.0,0.00020989,2]
[386534427,1758364133414,-500.0,0.00020989,2]
[386534428,1758364133444,-500.0,0.00020989,2]
[386534429,1758364133573,-500.0,0.00020989,2]
[386534430,1758364133609,-500.0,0.00020989,2]
[386534431,1758364133646,-500.0,0.00020989,2]
[386534432,1758364133684,-500.0,0.00020989,2]
[386534433,1758364133722,-500.0,0.00020989,2]
[386534434,1758364133769,-500.0,0.00020989,2]
[386534435,1758364133810,-500.0,0.00020989,2]
[386534436,1758364133848,-500.0,0.00020989,2]
[386534437,1758364133881,-500.0,0.00020989,2]
[386534438,1758364133915,-500.0,0.00020989,2]
[386534439,1758364134103,-500.0,0.00020989,2]
[386534440,1758364134143,-500.0,0.00020989,2]
[386534441,1758364134175,-500.0,0.00020989,2]
[386534442,1758364134212,-500.0,0.00020989,2]
[386534443,1758364134246,-500.0,0.00020989,2]
[386534444,1758364134282,-500.0,0.00020989,2]
[386534445,1758364134315,-500.0,0.00020989,2]
[386534446,1758364134350,-500.0,0.00020989,2]
[386534447,1758364134385,-500.0,0.00020989,2]
[386534448,1758364134418,-500.0,0.00020989,2]
[386534461,1758364143101,158.37,0.00019402,2]
[386534462,1758364143327,-548.45797319,0.00020989,2]
[386534463,1758364143358,-500.0,0.00020989,2]
[386534464,1758364143389,-500.0,0.00020989,2]
[386534465,1758364143421,-500.0,0.00020989,2]
[386534466,1758364143450,-500.0,0.00020989,2]
[386534467,1758364143482,-500.0,0.00020989,2]
[386534468,1758364143514,-500.0,0.00020989,2]
[386534469,1758364143546,-500.0,0.00020989,2]
[386534470,1758364143578,-500.0,0.00020989,2]
[386534471,1758364143611,-403.09405362,0.00020989,2]
[386534472,1758364143677,-96.90594638,0.00020989,2]
[386534473,1758364143819,-336.61788149,0.00020989,2]
[386534474,1758364143856,-500.0,0.00020989,2]
[386534475,1758364143888,-500.0,0.00020989,2]
[386534476,1758364143921,-231.75413188,0.00020989,2]
[386534477,1758364143950,-500.0,0.00020989,2]
[386534478,1758364143982,-500.0,0.00020989,2]
[386534479,1758364144016,-500.0,0.00020989,2]
[386534480,1758364144048,-500.0,0.00020989,2]
[386534481,1758364144081,-500.0,0.00020989,2]
[386534482,1758364144115,-500.0,0.00020989,2]
[386534483,1758364144147,-169.4540805,0.00020989,2]
[386534484,1758364144345,-330.5459195,0.00020989,2]
[386534485,1758364144374,-500.0,0.00020989,2]
[386534486,1758364144407,-500.0,0.00020989,2]
[386534487,1758364144438,-500.0,0.00020989,2]
[386534488,1758364144470,-500.0,0.00020989,2]
[386534489,1758364144501,-500.0,0.00020989,2]
[386534490,1758364144533,-500.0,0.00020989,2]
[386534491,1758364144563,-500.0,0.00020989,2]
[386534492,1758364144595,-500.0,0.00020989,2]
[386534493,1758364144646,-500.0,0.00020989,2]
[386534494,1758364144782,316.75,0.00020326,2]
[386534495,1758364144855,-500.0,0.00020989,2]
[386534496,1758364144886,-500.0,0.00020989,2]
[386534497,1758364144918,-500.0,0.00020989,2]
[386534498,1758364144949,-500.0,0.00020989,2]
[386534500,1758364144980,-500.0,0.00020989,2]
[386534501,1758364145011,-500.0,0.00020989,2]
[386534502,1758364145044,-500.0,0.00020989,2]
[386534503,1758364145076,-500.0,0.00020989,2]
[386534504,1758364145106,-500.0,0.00020989,2]
[386534505,1758364145145,-500.0,0.00020989,2]
[386534506,1758364145300,-500.0,0.00020989,2]
[386534507,1758364145330,-500.0,0.00020989,2]
[386534508,1758364145361,-500.0,0.00020989,2]
[386534509,1758364145392,-500.0,0.00020989,2]
[386534510,1758364145426,-500.0,0.00020989,2]
[386534511,1758364145460,-500.0,0.00020989,2]
[386534512,1758364145492,-500.0,0.00020989,2]
[386534513,1758364145528,-500.0,0.00020989,2]
[386534514,1758364145562,-500.0,0.00020989,2]
[386534515,1758364145594,-500.0,0.00020989,2]
[386534516,1758364145722,-500.0,0.00020989,2]
[386534517,1758364145758,-500.0,0.00020989,2]
[386534518,1758364145790,-500.0,0.00020989,2]
[386534519,1758364145822,-500.0,0.00020989,2]
[386534520,1758364145853,-425.79727023,0.00020989,2]
[386534521,1758364145983,-1161.41409355,0.00020989,2]
[386534522,1758364146015,-500.0,0.00020989,2]
[386534523,1758364146047,-664.17317889,0.00020989,2]
[386534525,1758364150499,212.84545463,0.000199,2]
[386534526,1758364153157,-171.97868372,0.00020905,2]
[386534527,1758364153186,-300.0,0.00020988,2]
[386534528,1758364153217,-497.24091466,0.00020989,2]
[386534529,1758364153247,-1161.41409355,0.00020989,2]
[386534530,1758364153277,-500.0,0.00020989,2]
[386534531,1758364153307,-1161.41409355,0.00020989,2]
[386534532,1758364153343,-1161.41409355,0.00020989,2]
[386534533,1758364153603,-500.0,0.00020989,2]
[386534534,1758364153637,-1161.41409355,0.00020989,2]
[386534535,1758364153669,-1161.41409355,0.00020989,2]
[386534536,1758364153700,-221.57513926,0.00020989,2]
[386534538,1758364153732,-1161.41409355,0.00020989,2]
[386534539,1758364153770,-426.96106663,0.00020989,2]
[386534540,1758364153954,-734.45302692,0.00020989,2]
[386534541,1758364153985,-1161.41409355,0.00020989,2]
[386534542,1758364154016,-1161.41409355,0.00020989,2]
[386534543,1758364154047,-1161.41409355,0.00020989,2]
[386534544,1758364154078,-401.20529131,0.00020989,2]
[386534546,1758364161091,-465.55046881,0.00020988,2]
[386534547,1758364161221,-760.20880224,0.00020989,2]
[386534548,1758364161246,-1161.41409355,0.00020989,2]
[386534549,1758364161268,-1161.41409355,0.00020989,2]
[386534550,1758364161290,-1161.41409355,0.00020989,2]
[386534551,1758364161312,-1161.41409355,0.00020989,2]
[386534552,1758364161333,-1161.41409355,0.00020989,2]
[386534553,1758364161354,-1161.41409355,0.00020989,2]
[386534554,1758364161376,-1161.41409355,0.00020989,2]
[386534555,1758364161397,-1161.41409355,0.00020989,2]
[386534556,1758364161419,-1012.53057371,0.00020989,2]
[386534560,1758364213216,-480.0,0.00020988,2]
[386534561,1758364213244,-162.50626486,0.00020988,2]
[386534562,1758364213272,-277.0,0.00020988,2]
[386534563,1758364213303,-300.0,0.00020988,2]
[386534564,1758364213335,-903.0,0.00020988,2]
[386534565,1758364213373,-148.88351984,0.00020989,2]
[386534566,1758364213404,-1161.41409355,0.00020989,2]
[386534567,1758364213434,-1161.41409355,0.00020989,2]
[386534568,1758364215506,-1161.41409355,0.00020989,2]
[386534569,1758364215537,-1161.41409355,0.00020989,2]
[386534570,1758364215568,-1161.41409355,0.00020989,2]
[386534571,1758364215601,-1161.41409355,0.00020989,2]
[386534572,1758364215749,-1161.41409355,0.00020989,2]
[386534573,1758364215782,-1161.41409355,0.00020989,2]
[386534574,1758364215819,-1161.41409355,0.00020989,2]
[386534575,1758364219907,486.15244394,0.00020988,2]
[386534576,1758364221771,480.0,0.00020988,2]
[386534577,1758364225052,152.33,0.00019346,2]
[386534578,1758364225500,304.65,0.00020267,2]
[386534579,1758364227694,480.0,0.00020988,2]
[386534640,1758364231912,480.0,0.00020988,2]
[386534643,1758364231936,-14550.27374763,0.00020989,2]
[386534647,1758364231959,-139.27578216,0.00020989,2]
[386534659,1758364232043,-1691.59999,0.00020989,2]
[386534695,1758364232349,257.24862248,0.00020988,2]
[386534775,1758364233158,391.14437228,0.00020988,2]
[386534779,1758364233184,108.85562772,0.00020988,2]
[386534783,1758364233213,302.53719595,0.00020988,2]
[386534786,1758364233241,500.0,0.00020988,2]
[386534790,1758364233289,500.0,0.00020988,2]
[386534794,1758364233318,217.45410568,0.00020988,2]
[386534799,1758364233354,500.0,0.00020988,2]
[386534803,1758364233384,227.00331124,0.00020988,2]
[386534808,1758364233417,500.0,0.00020988,2]
[386534812,1758364233447,500.0,0.00020988,2]
[386534817,1758364233491,500.0,0.00020988,2]
[386534822,1758364233525,500.0,0.00020988,2]
[386534826,1758364233557,500.0,0.00020988,2]
[386534827,1758364233585,481.84643128,0.00020988,2]
[386534830,1758364233622,500.0,0.00020988,2]
[386534834,1758364233653,500.0,0.00020988,2]
[386534835,1758364233689,500.0,0.00020988,2]
[386534839,1758364233728,500.0,0.00020988,2]
[386534840,1758364233769,500.0,0.00020988,2]
[386534841,1758364233800,500.0,0.00020988,2]
[386534843,1758364233861,500.0,0.00020988,2]
[386534844,1758364233909,500.0,0.00020988,2]
[386534845,1758364233942,500.0,0.00020988,2]
[386534846,1758364233975,162.31332813,0.00020988,2]
[386534847,1758364234001,311.24577519,0.00020988,2]
[386534848,1758364235685,480.0,0.00020988,2]
[386534852,1758364237955,-160.0,0.00020989,2]
[386534853,1758364237965,-7976.37854757,0.00020989,2]
[386534854,1758364237976,-940.8800004,0.00020989,2]
[386534855,1758364238009,-23046.43228837,0.00020989,2]
[386534858,1758364239569,482.92102137,0.00020988,2]
[386534861,1758364241390,359.67804712,0.00020988,2]
[386534876,1758364307618,150.03,0.00019352,2]
[386534877,1758364308028,300.06,0.00020273,2]
[386534879,1758364329173,212.84545454,0.000199,2]
[386534882,1758364345566,-300.0,0.00020987,2]
[386534883,1758364345597,-1200.0,0.00020987,2]
[386534884,1758364345627,-480.0,0.00020988,2]
[386534885,1758364345656,-480.0,0.00020988,2]
[386534886,1758364345687,-374.47906482,0.00020988,2]
[386534887,1758364345717,-482.99218539,0.00020988,2]
[386534888,1758364345749,-241.89476825,0.00020988,2]
[386534889,1758364345780,-480.0,0.00020988,2]
[386534890,1758364345811,-480.0,0.00020988,2]
[386534891,1758364345841,-469.75548734,0.00020988,2]
[386534895,1758364386020,-3143.89357938,0.00020912,2]
[386534896,1758364386049,-21.7669884,0.00020988,2]
[386534897,1758364386080,-480.0,0.00020988,2]
[386534898,1758364386108,-370.09188797,0.00020988,2]
[386534899,1758364386136,-488.50358639,0.00020988,2]
[386534900,1758364386163,-486.65837934,0.00020988,2]
[386534901,1758364386330,-487.75832336,0.00020988,2]
[386534902,1758364386358,-488.02138071,0.00020988,2]
[386534903,1758364386386,-489.26699008,0.00020988,2]
[386534904,1758364386414,-471.54255488,0.00020988,2]
[386534905,1758364386443,-480.0,0.00020988,2]
[386534906,1758364386471,-483.48260203,0.00020988,2]
[386534907,1758364386499,-487.47340476,0.00020988,2]
[386534908,1758364386527,-545.99839977,0.00020988,2]
[386534909,1758364386556,-483.85679427,0.00020988,2]
[386534910,1758364386585,-480.0,0.00020988,2]
[386534911,1758364389765,150.0,0.00019349,2]
[386534912,1758364390169,288.6,0.0002027,2]
[386534914,1758364403616,-194.46960815,0.00020892,2]
[386534915,1758364413649,-9085.68845202,0.00020988,2]
[386534916,1758364413740,-10000.01,0.00020988,2]
[386534917,1758364413895,-10000.01,0.00020988,2]
[386534918,1758364414262,-10000.01,0.00020988,2]
[386534919,1758364414441,-10000.01,0.00020988,2]
[386534920,1758364414579,-914.27154798,0.00020988,2]
[386534921,1758364414609,-470.75255859,0.00020988,2]
[386534922,1758364414638,-528.11387958,0.00020988,2]
[386534923,1758364414667,-480.0,0.00020988,2]
[386534924,1758364414697,-480.0,0.00020988,2]
[386534925,1758364414726,-480.0,0.00020988,2]
[386534926,1758364414757,-486.08653928,0.00020988,2]
[386534927,1758364414786,-477.27873997,0.00020988,2]
[386534928,1758364414816,-480.0,0.00020988,2]
[386534929,1758364414962,-407.0034692,0.00020988,2]
[386534931,1758364472061,150.0,0.00019349,2]
[386534932,1758364472494,277.44,0.0002027,2]
[386534933,1758364483827,-300.0,0.00020987,2]
[386534934,1758364483858,-72.9965308,0.00020988,2]
[386534935,1758364483888,-480.0,0.00020988,2]
[386534936,1758364483919,-480.0,0.00020988,2]
[386534937,1758364483951,-480.0,0.00020988,2]
[386534938,1758364483981,-480.0,0.00020988,2]
[386534939,1758364484009,-468.46684287,0.00020988,2]
[386534940,1758364484039,-483.67266671,0.00020988,2]
[386534941,1758364484068,-494.88396916,0.00020988,2]
[386534942,1758364484095,-483.57598505,0.00020988,2]
[386534943,1758364484125,-480.0,0.00020988,2]
[386534944,1758364484153,-109.55144675,0.00020988,2]
[386534945,1758364484320,-373.71511732,0.00020988,2]
[386534946,1758364484349,-480.0,0.00020988,2]
[386534947,1758364484377,-480.0,0.00020988,2]
[386534948,1758364484507,-465.19225493,0.00020988,2]
[386534949,1758364484536,-520.36879474,0.00020988,2]
[386534950,1758364484566,-480.0,0.00020988,2]
[386534951,1758364484594,-483.83689511,0.00020988,2]
[386534952,1758364484622,-484.70646525,0.00020988,2]
[386534953,1758364484649,-470.38253359,0.00020988,2]
[386534954,1758364484678,-480.0,0.00020988,2]
[386534955,1758364484709,-63.60587812,0.00020988,2]
[386534956,1758364485059,-382.6692392,0.00020988,2]
[386534960,1758364506961,212.84545454,0.000199,2]
[386534962,1758364555382,150.0,0.00019347,2]
[386534963,1758364555833,266.56,0.00020268,2]
[386534965,1758364561775,17682.8761,0.00024,30]
[386534966,1758364581166,-223.06874474,0.00020905,2]
[386534967,1758364581196,-300.0,0.00020986,2]
[386534968,1758364581225,-300.0,0.00020987,2]
[386534969,1758364581255,-300.0,0.00020987,2]
[386534970,1758364581282,-300.0,0.00020987,2]
[386534971,1758364581312,-1200.0,0.00020987,2]
[386534972,1758364581342,-53.72488268,0.00020988,2]
[386534973,1758364581371,-500.0,0.00020988,2]
[386534974,1758364581399,-500.0,0.00020988,2]
[386534975,1758364581435,-480.0,0.00020988,2]
[386534976,1758364581466,-480.0,0.00020988,2]
[386534977,1758364581495,-246.42274516,0.00020988,2]
[386534978,1758364581587,-233.57725484,0.00020988,2]
[386534979,1758364581615,-487.41948201,0.00020988,2]
[386534980,1758364581643,-480.0,0.00020988,2]
[386534981,1758364581672,-480.0,0.00020988,2]
[386534982,1758364581702,-485.74313108,0.00020988,2]
[386534983,1758364581731,-483.92151366,0.00020988,2]
[386534984,1758364581760,-496.88863565,0.00020988,2]
[386534985,1758364581789,-436.35019794,0.00020988,2]
[386534986,1758364581818,-485.41501816,0.00020988,2]
[386534987,1758364581846,-480.0,0.00020988,2]
[386534988,1758364581874,-421.37953332,0.00020989,2]
[386534995,1758364609009,-1041.92067168,0.0002089,2]
[386534996,1758364609038,-160.0,0.00020986,2]
[386534997,1758364609067,-480.0,0.00020988,2]
[386534998,1758364609096,-480.0,0.00020988,2]
[386534999,1758364609125,-480.0,0.00020988,2]
[386535000,1758364609154,-480.0,0.00020988,2]
[386535001,1758364609188,-1638.27,0.00020988,2]
[386535002,1758364609300,-480.0,0.00020988,2]
[386535003,1758364609328,-58.62046668,0.00020989,2]
[386535004,1758364609355,-180.07403574,0.00020989,2]
[386535005,1758364609384,-500.0,0.00020989,2]
[386535006,1758364609412,-191.88925681,0.00020989,2]
[386535007,1758364609443,-500.0,0.00020989,2]
[386535008,1758364609473,-436.14050753,0.00020989,2]
[386535009,1758364609504,-480.40468648,0.00020989,2]
[386535010,1758364609532,-480.0,0.00020989,2]
[386535011,1758364609561,-480.0,0.00020989,2]
[386535012,1758364609590,-812.68,0.00020989,2]
[386535013,1758364609723,-320.39209352,0.00020989,2]
[386535014,1758364610094,-159.60790648,0.00020989,2]
[386535015,1758364610103,-251.31832916,0.00020989,2]
[386535016,1758364618980,-480.0,0.00020988,2]
[386535017,1758364619014,-423.42088786,0.00020988,2]
[386535018,1758364619043,-480.0,0.00020988,2]
[386535019,1758364619074,-232.46787676,0.00020989,2]
[386535020,1758364619103,-500.0,0.00020989,2]
[386535021,1758364619131,-500.0,0.00020989,2]
[386535022,1758364619159,-500.0,0.00020989,2]
[386535023,1758364619187,-500.0,0.00020989,2]
[386535024,1758364619215,-480.0,0.00020989,2]
[386535025,1758364619245,-617.59247076,0.00020989,2]
[386535026,1758364619350,-573.04752924,0.00020989,2]
[386535027,1758364619379,-480.0,0.00020989,2]
[386535028,1758364619407,-560.65096369,0.00020989,2]
[386535029,1758364619436,-486.57752314,0.00020989,2]
[386535030,1758364619464,-484.51281893,0.00020989,2]
[386535031,1758364619493,-820.79,0.00020989,2]
[386535032,1758364619524,-918.46,0.00020989,2]
[386535033,1758364619552,-480.0,0.00020989,2]
[386535034,1758364619927,-99.62505238,0.00020988,2]
[386535035,1758364619941,-380.37494762,0.00020988,2]
[386535036,1758364619950,-99.62505238,0.00020989,2]
[386535037,1758364619963,-390.86288416,0.00020989,2]
[386535038,1758364619972,-1.06944584,0.00020989,2]
[386535041,1758364628989,-2095.92905292,0.00020906,2]
[386535042,1758364629019,-300.0,0.00020988,2]
[386535043,1758364629047,-480.0,0.00020988,2]
[386535044,1758364629076,-478.93055416,0.00020989,2]
[386535045,1758364629104,-406.18078584,0.00020989,2]
[386535046,1758364629189,-2477.92921416,0.00020989,2]
[386535047,1758364629217,-483.44452902,0.00020989,2]
[386535048,1758364629245,-480.0,0.00020989,2]
[386535049,1758364629272,-480.0,0.00020989,2]
[386535050,1758364629300,-480.0,0.00020989,2]
[386535051,1758364629327,-480.0,0.00020989,2]
[386535052,1758364629411,-74.48468514,0.00020989,2]
[386535053,1758364629429,-405.51531486,0.00020989,2]
[386535054,1758364629439,-77.92921416,0.00020989,2]
[386535055,1758364629453,-402.07078584,0.00020989,2]
[386535056,1758364629462,-77.92921416,0.00020989,2]
[386535057,1758364629476,-402.07078584,0.00020989,2]
[386535058,1758364638322,150.0,0.00019408,2]
[386535059,1758364638848,255.96,0.00020332,2]